fUSD/lending_fUSD_20251011
["ID","MTS","AMOUNT","RATE_DAILY","PERIOD"]
[390923895,1760221843090,-461.412428,0.00014747,2]
[390923906,1760221843186,-1130.40073013,0.00014747,2]
[390923909,1760221843210,-1338.89025357,0.00014747,2]
[390923925,1760221843349,-1012.85979988,0.00014747,2]
[390923928,1760221843360,-2442.03931208,0.00014747,2]
[390924159,1760221845803,-155.581829,0.00014703,2]
[390924161,1760221845813,-6207.992341,0.00014747,2]
[390924163,1760221845826,-1201.35081662,0.00014747,2]
[390924166,1760221845837,-10812.949,0.00014747,2]
[390924168,1760221845848,-427.32439843,0.00014747,2]
[390924170,1760221845863,-9286.7549612,0.00014747,2]
[390924177,1760221845914,-47068.788766,0.00014747,2]
[390924181,1760221845942,-566744.64063556,0.00014747,2]
[390924183,1760221845953,-4887.8662834,0.00014747,2]
[390924188,1760221845985,-155.581829,0.00014703,2]
[390924190,1760221845994,-3748.94976631,0.00014747,2]
[390924192,1760221846005,-9776.5448937,0.00014747,2]
[390924200,1760221846068,-4306.3172684,0.00014747,2]
[390924202,1760221846082,-530.1,0.00014747,2]
[390924204,1760221846093,-10138.17352937,0.00014747,2]
[390924445,1760221983932,-263.16979413,0.00013319,2]
[390924446,1760221988451,-36.83020587,0.00013319,2]
[390924447,1760221988473,-331.14024316,0.0001332,2]
[390924448,1760221993439,-500.0,0.0001332,2]
[390924449,1760221995368,-158.13243427,0.0001332,2]
[390924450,1760221997094,-192.79377433,0.0001332,2]
[390924453,1760222012878,-300.0,0.0001332,2]
[390924454,1760222015949,-307.20622567,0.0001332,2]
[390924455,1760222017830,-171.93437259,0.0001332,2]
[390924456,1760222022359,-393.24168019,0.0001332,2]
[390924457,1760222026492,-290.46035879,0.0001332,2]
[390924458,1760222043942,-177.12372833,0.00013319,2]
[390924459,1760222045396,-122.87627167,0.00013319,2]
[390924460,1760222045418,-197.12372833,0.0001332,2]
[390924461,1760222049742,-184.09543201,0.0001332,3]
[390924462,1760222055488,-11.90456799,0.0001332,3]
[390924463,1760222055511,-156.53210976,0.0001332,2]
[390924464,1760222059770,-276.92490519,0.0001332,2]
[390924466,1760222062059,-418.33762115,0.0001332,2]
[390924467,1760222064274,-193.25150869,0.00013284,2]
[390924468,1760222064297,-116.40715464,0.0001332,2]
[390924469,1760222066357,-403.07509481,0.0001332,2]
[390924470,1760222068239,-450.0,0.0001332,2]
[390924471,1760222072460,-300.0,0.0001332,2]
[390924472,1760222074836,-250.65885434,0.00013319,2]
[390924473,1760222076619,-240.6199804,0.00013319,2]
[390924474,1760222078629,-10.02766501,0.00013319,2]
[390924475,1760222078652,-491.06032498,0.00013319,2]
[390924476,1760222082181,-8.93967502,0.00013319,2]
[390924477,1760222082203,-294.06032498,0.00013319,2]
[390924478,1760222086472,-166.0,0.00013319,2]
[390924481,1760222094168,-19.12685466,0.00013319,2]
[390924482,1760222094192,-147.87314534,0.00013319,2]
[390924483,1760222118425,-164.0,0.00013319,3]
[390924484,1760222118448,-174.0,0.00013319,3]
[390924485,1760222118471,-261.01384287,0.00013319,2]
[390924486,1760222120522,-300.0,0.00013319,2]
[390924487,1760222124346,-195.81693167,0.00013319,2]
[390924488,1760222125840,-302.0,0.00013319,2]
[390924489,1760222128178,-141.16922546,0.00013319,2]
[390924490,1760222128202,-70.28662789,0.00013319,2]
[390924491,1760222132327,-163.98200923,0.00013319,2]
[390924492,1760222137289,-65.73136288,0.00013319,2]
[390924493,1760222137312,-85.26863728,0.00013319,2]
[390924494,1760222140306,-160.0,0.00013319,2]
[390924495,1760222141805,-54.73136272,0.00013319,2]
[390924496,1760222142153,-195.26863728,0.00013319,2]
[390924497,1760222143756,-248.24443214,0.00013319,2]
[390924498,1760222143784,-500.0,0.00013319,2]
[390924499,1760222143808,-221.00985748,0.00013319,2]
[390924500,1760222143836,-230.74571038,0.00013319,2]
[390924501,1760222145712,-269.25428962,0.00013319,2]
[390924502,1760222145738,-5.56281826,0.00013319,2]
[390924503,1760222150926,-272.09207002,0.00013319,2]
[390924504,1760222150955,-28.9465674,0.00013319,2]
[390924505,1760222153274,-181.32137211,0.00013319,2]
[390924506,1760222157278,-289.73206049,0.00013319,2]
[390924507,1760222157303,-11.30657693,0.00013319,2]
[390924508,1760222160573,-449.09223143,0.00013319,2]
[390924511,1760222162071,-300.0,0.00013319,2]
[390924512,1760222162096,-39.60119164,0.00013319,2]
[390924513,1760222162121,-160.39880836,0.00013319,2]
[390924514,1760222167445,-165.0,0.00013319,3]
[390924515,1760222167473,-335.0,0.00013319,2]
[390924516,1760222170580,-4.60119164,0.00013319,2]
[390924517,1760222170606,-582.41542066,0.00013319,2]
[390924518,1760222170632,-62.9833877,0.00013319,2]
[390924519,1760222175593,-162.87235761,0.00013319,2]
[390924520,1760222175621,-337.12764239,0.00013319,2]
[390924521,1760222178534,-162.87235761,0.00013319,2]
[390924522,1760222178564,-388.16627981,0.00013319,2]
[390924523,1760222181832,-111.83372019,0.00013319,2]
[390924524,1760222181862,-87.12764239,0.00013319,2]
[390924525,1760222183399,-308.92491325,0.00013319,2]
[390924526,1760222183423,-191.07508675,0.0001332,2]
[390924527,1760222185443,-500.0,0.0001332,2]
[390924528,1760222188861,-500.0,0.00013319,2]
[390924529,1760222190403,-274.1442547,0.00013319,2]
[390924530,1760222193301,-225.8557453,0.00013319,2]
[390924531,1760222193328,-285.96282001,0.00013319,2]
[390924532,1760222196830,-214.03717999,0.00013319,2]
[390924533,1760222196858,-234.92418259,0.00013319,2]
[390924534,1760222201928,-251.03863742,0.00013319,2]
[390924535,1760222205199,-14.03717999,0.00013319,2]
[390924536,1760222205226,-475.0,0.00013319,2]
[390924537,1760222205249,-10.96282001,0.00013319,2]
[390924538,1760222207626,-142.58274958,0.00013319,2]
[390924539,1760222207655,-357.41725042,0.00013319,2]
[390924540,1760222209201,-142.58274958,0.00013319,2]
[390924541,1760222209229,-357.41725042,0.00013319,2]
[390924542,1760222211660,-142.58274958,0.00013319,2]
[390924543,1760222211731,-56.378613,0.00013319,2]
[390924544,1760222216599,-217.7656417,0.00013319,2]
[390924545,1760222216623,-282.2343583,0.00013319,2]
[390924546,1760222220480,-217.7656417,0.00013319,2]
[390924547,1760222220507,-82.2343583,0.00013319,2]
[390924548,1760222221940,-196.45485104,0.00013318,2]
[390924551,1760222238820,-103.54514896,0.00013318,2]
[390924552,1760222238843,-177.12521743,0.00013319,2]
[390924553,1760222238870,-59.73895035,0.00013319,2]
[390924554,1760222241454,-247.70256273,0.00013319,2]
[390924555,1760222245756,-110.32412862,0.00013319,2]
[390924556,1760222245782,-126.15914087,0.00013319,2]
[390924557,1760222247407,-263.02539771,0.00013319,2]
[390924558,1760222250192,-110.81546142,0.00013319,2]
[390924559,1760222250217,-187.83020545,0.00013319,2]
[390924560,1760222252754,-66.23502087,0.00013319,2]
[390924561,1760222252780,-500.0,0.00013319,2]
[390924562,1760222252808,-198.96136258,0.00013319,2]
[390924563,1760222252839,-6516.51074512,0.0001332,2]
[390924564,1760222259958,-382.83475749,0.0001332,2]
[390924565,1760222263923,-316.17232089,0.0001332,2]
[390924566,1760222266701,-416.03084156,0.0001332,2]
[390924567,1760222269673,-153.5782,0.0001332,2]
[390924568,1760222271586,-232.43732568,0.0001332,2]
[390924569,1760222273389,-156.63850373,0.0001332,2]
[390924570,1760222275792,-186.38069451,0.0001332,2]
[390924571,1760222279143,-308.335711,0.0001332,2]
[390924572,1760222281839,-232.90658446,0.0001332,2]
[390924573,1760222287157,-181.84807794,0.00013318,2]
[390924574,1760222288790,-118.15192206,0.00013318,2]
[390924575,1760222288812,-451.60418158,0.0001332,2]
[390924576,1760222293120,-156.57366959,0.0001332,2]
[390924577,1760222294288,-258.71690701,0.0001332,2]
[390924578,1760222296528,-18656.42476775,0.0001332,2]
[390924579,1760222296551,-500.0,0.00013384,2]
[390924580,1760222296573,-2751.0,0.00013629,2]
[390924581,1760222296595,-3311.76,0.00013651,2]
[390924582,1760222296617,-250.0,0.00013783,2]
[390924583,1760222302806,449.5488,0.0001322,2]
[390924586,1760222311716,500.0,0.00013318,2]
[390924587,1760222311916,356.39257807,0.00013318,2]
[390924591,1760222450080,-153.5782,0.0001322,2]
[390924592,1760222450106,-350.91454982,0.00013369,2]
[390924593,1760222450134,-335.43102575,0.00013369,2]
[390924594,1760222450162,-500.0,0.00013369,2]
[390924595,1760222450188,-425.84866068,0.00013369,2]
[390924596,1760222450215,-194.3584218,0.00013369,2]
[390924597,1760222450239,-6739.86914195,0.0001337,2]
[390924600,1760222460075,-20000.0,0.0001337,2]
[390924601,1760222462474,-300.0,0.00013369,2]
[390924602,1760222462500,-19700.0,0.0001337,2]
[390924604,1760222488115,-20000.0,0.0001337,2]
[390924605,1760222497954,-15663.0,0.0001337,2]
[390924610,1760222530224,-300.0,0.00013369,2]
[390924611,1760222530251,-150.0,0.00013369,2]
[390924612,1760222530276,-300.0,0.00013369,2]
[390924613,1760222530301,-22174.0,0.0001337,2]
[390924614,1760222538814,500.0,6.201e-05,2]
[390924615,1760222541289,277.13322544,6.201e-05,2]
[390924616,1760222545512,579.60398386,6.201e-05,2]
[390924617,1760222558415,-162.17788973,0.00013271,2]
[390924618,1760222558440,-151.0,0.00013367,2]
[390924619,1760222558469,-500.0,0.00013369,2]
[390924620,1760222558499,-500.0,0.00013369,2]
[390924621,1760222558527,-500.0,0.00013369,2]
[390924622,1760222558555,-500.0,0.00013369,2]
[390924623,1760222558582,-500.0,0.00013369,2]
[390924624,1760222558611,-500.0,0.00013369,2]
[390924625,1760222558637,-500.0,0.00013369,2]
[390924626,1760222558667,-500.0,0.00013369,2]
[390924627,1760222558694,-500.0,0.00013369,2]
[390924628,1760222558720,-500.0,0.00013369,2]
[390924629,1760222558749,-500.0,0.00013369,2]
[390924630,1760222558777,-500.0,0.00013369,2]
[390924631,1760222558804,-500.0,0.00013369,2]
[390924632,1760222558832,-500.0,0.00013369,2]
[390924633,1760222558860,-320.58651144,0.00013369,2]
[390924634,1760222558890,-500.0,0.00013369,2]
[390924635,1760222558918,-500.0,0.00013369,2]
[390924636,1760222558944,-500.0,0.00013369,2]
[390924637,1760222558971,-500.0,0.00013369,2]
[390924638,1760222558998,-500.0,0.00013369,2]
[390924639,1760222559025,-500.0,0.00013369,2]
[390924640,1760222559052,-500.0,0.00013369,2]
[390924641,1760222559080,-500.0,0.00013369,2]
[390924642,1760222559107,-500.0,0.00013369,2]
[390924643,1760222559132,-10866.23559883,0.0001337,2]
[390924644,1760222583225,-245.12750689,0.00013102,2]
[390924645,1760222585363,-54.87249311,0.00013102,2]
[390924646,1760222585387,-167.40642244,0.00013103,2]
[390924649,1760222588593,-13.81157756,0.00013103,2]
[390924650,1760222588616,-237.62842244,0.00013103,2]
[390924651,1760222590514,-187.12457914,0.00013103,2]
[390924652,1760222592631,-152.21542086,0.00013103,2]
[390924653,1760222596851,-398.98200939,0.00013103,2]
[390924654,1760222601786,-5447.26956817,0.00013103,2]
[390924655,1760222601810,-196.15140529,0.00013271,2]
[390924656,1760222601833,-4356.57902654,0.0001337,2]
[390924657,1760222603414,-10000.0,0.0001337,2]
[390924658,1760222605217,-10000.0,0.0001337,2]
[390924659,1760222606802,-10000.0,0.0001337,2]
[390924660,1760222608130,-2671.1174414,0.00013358,2]
[390924661,1760222608154,-7328.8825586,0.0001337,2]
[390924662,1760222609777,-10000.0,0.0001337,2]
[390924663,1760222611090,-10000.0,0.0001337,2]
[390924664,1760222612508,-10000.0,0.0001337,2]
[390924665,1760222614039,-10000.0,0.0001337,2]
[390924666,1760222616280,-10000.0,0.0001337,2]
[390924667,1760222617748,-10000.0,0.0001337,2]
[390924668,1760222619027,-10000.0,0.0001337,2]
[390924669,1760222627623,-368.06297478,0.00013271,2]
[390924670,1760222627647,-6429.93702522,0.0001337,2]
[390924671,1760222629902,-278.46193809,0.0001337,2]
[390924672,1760222631308,-302.0,0.0001337,2]
[390924674,1760222653526,-289.01799061,0.00013369,2]
[390924677,1760222660025,-210.98200939,0.00013369,2]
[390924678,1760222660050,-91.01799061,0.00013369,2]
[390924679,1760222661699,-343.0603018,0.00013369,2]
[390924680,1760222661721,-319.17187521,0.00013369,2]
[390924681,1760222661743,-343.28033271,0.00013369,2]
[390924682,1760222661769,-500.0,0.00013369,2]
[390924683,1760222661793,-500.0,0.00013369,2]
[390924684,1760222661820,-500.0,0.00013369,2]
[390924685,1760222661845,-503.60392832,0.00013369,2]
[390924686,1760222661870,-500.0,0.00013369,2]
[390924687,1760222661895,-500.0,0.00013369,2]
[390924688,1760222661926,-490.88356196,0.00013369,2]
[390924689,1760222676024,-300.0,0.00013369,2]
[390924690,1760222676048,-19900.0,0.0001337,2]
[390924691,1760222689967,-500.0,0.00013368,2]
[390924692,1760222689996,-500.0,0.00013368,2]
[390924693,1760222690024,-590.62383821,0.00013368,2]
[390924694,1760222690051,-500.0,0.00013368,2]
[390924695,1760222690077,-500.0,0.00013368,2]
[390924696,1760222690103,-500.0,0.00013368,2]
[390924697,1760222690130,-500.0,0.00013368,2]
[390924698,1760222690156,-500.0,0.00013368,2]
[390924699,1760222690181,-500.0,0.00013368,2]
[390924700,1760222690206,-500.0,0.00013368,2]
[390924701,1760222690232,-500.0,0.00013368,2]
[390924702,1760222690264,-500.0,0.00013368,2]
[390924703,1760222690291,-109.37616179,0.00013368,2]
[390924706,1760222722766,-5008.2155034,0.00013357,2]
[390924707,1760222722791,-1200.0,0.00013367,2]
[390924708,1760222722819,-390.62383821,0.00013368,2]
[390924709,1760222722842,-300.0,0.00013369,2]
[390924710,1760222722866,-150.0,0.00013369,2]
[390924711,1760222722890,-12951.16065839,0.0001337,2]
[390924712,1760222724389,-20000.0,0.0001337,2]
[390924713,1760222725637,-20000.0,0.0001337,2]
[390924714,1760222731884,-20600.0,0.0001337,2]
[390924716,1760222760200,-8883.7224111,0.0001327,2]
[390924717,1760222760226,-521.26813755,0.0001327,2]
[390924718,1760222760255,-500.0,0.00013368,2]
[390924719,1760222760283,-500.0,0.00013368,2]
[390924720,1760222760319,-500.0,0.00013368,2]
[390924721,1760222760349,-500.0,0.00013368,2]
[390924722,1760222760378,-150.94214175,0.00013368,2]
[390924723,1760222760406,-25783.0673096,0.0001337,2]
[390924725,1760222793948,302.0,0.00013269,2]
[390924726,1760222795938,-198.0,0.00013269,2]
[390924727,1760222795967,-52.0,0.00013269,2]
[390924728,1760222819146,-215.4245165,0.00013269,2]
[390924729,1760222824779,-203.86059239,0.00013269,2]
[390924730,1760222824802,-410.258419,0.00013303,2]
[390924731,1760222824826,-1557.34611,0.00013363,2]
[390924732,1760222824849,-300.0,0.00013369,2]
[390924733,1760222824873,-27528.53487861,0.0001337,2]
[390924734,1760222826678,-200.0,0.00013362,2]
[390924735,1760222826704,-29800.0,0.0001337,2]
[390924736,1760222836471,-151.0,0.00013362,2]
[390924737,1760222836495,-500.0,0.00013362,2]
[390924738,1760222836520,-151.0,0.00013362,2]
[390924739,1760222836544,-500.0,0.00013362,2]
[390924740,1760222836568,-151.0,0.00013362,2]
[390924741,1760222836591,-500.0,0.00013362,2]
[390924742,1760222836615,-151.0,0.00013362,2]
[390924743,1760222836638,-500.0,0.00013362,2]
[390924744,1760222836662,-151.0,0.00013362,2]
[390924745,1760222836684,-500.0,0.00013362,2]
[390924746,1760222836709,-151.0,0.00013362,2]
[390924747,1760222836731,-500.0,0.00013362,2]
[390924748,1760222836755,-151.0,0.00013362,2]
[390924749,1760222836778,-500.0,0.00013362,2]
[390924750,1760222836804,-151.0,0.00013362,2]
[390924751,1760222837178,-500.0,0.00013362,2]
[390924752,1760222837203,-151.0,0.00013362,2]
[390924753,1760222837228,-500.0,0.00013362,2]
[390924754,1760222837251,-441.0,0.00013362,2]
[390924755,1760222848329,746.04956769,6.201e-05,2]
[390924756,1760222848808,500.0,6.201e-05,2]
[390924757,1760222868954,-158.48117097,0.00013269,2]
[390924789,1760222884205,-166.63261706,0.00013202,2]
[390924794,1760222887914,5096.560683,7.945e-05,2]
[390924800,1760222912845,-175.02466594,0.00013202,2]
[390924801,1760222912896,73.74475227,0.00013268,2]
[390924803,1760222915889,-426.25524773,0.00013268,2]
[390924804,1760222915912,-147.52768834,0.00013268,2]
[390924806,1760222920242,-188.3549872,0.00013268,2]
[390924807,1760222920267,-500.0,0.00013268,2]
[390924808,1760222920291,-500.0,0.00013268,2]
[390924809,1760222920315,-216.16146108,0.00013268,2]
[390924831,1760222921799,-177.70063656,0.00013268,2]
[390924843,1760222923764,-106.13790236,0.00013268,2]
[390924844,1760222923799,-88.32426805,0.00013268,2]
[390924845,1760222925400,-158.20263632,0.00013268,2]
[390924858,1760222931648,-253.47309563,0.00013268,2]
[390924859,1760222931673,-56.72792763,0.00013268,2]
[390924860,1760222934372,-235.459693,0.00013268,2]
[390924864,1760222936849,-207.81237937,0.00013268,2]
[390924865,1760222936874,-292.18762063,0.00013268,2]
[390924868,1760222939967,-207.81237937,0.00013268,2]
[390924869,1760222940010,-255.88023511,0.00013268,2]
[390924870,1760222950982,-244.11976489,0.00013268,2]
[390924871,1760222951011,-76.41650632,0.00013268,2]
[390924872,1760222956088,-302.0,0.00013268,2]
[390924873,1760222957570,-121.58349368,0.00013268,2]
[390924874,1760222957596,-130.13829332,0.00013268,2]
[390924875,1760222973490,-176.1463035,0.00013201,2]
[390924878,1760222975538,-127.5754835,0.00013201,2]
[390924879,1760222975566,-259.278213,0.00013268,2]
[390924880,1760222980631,-110.58349368,0.00013268,2]
[390924881,1760222980657,-500.0,0.00013268,2]
[390924882,1760222980683,-512.1408409,0.00013268,2]
[390924883,1760222980708,-500.0,0.00013268,2]
[390924884,1760222980735,-500.0,0.00013268,2]
[390924885,1760222980765,-500.0,0.00013268,2]
[390924886,1760222980791,-500.0,0.00013268,2]
[390924887,1760222980817,-500.0,0.00013268,2]
[390924888,1760222980842,-500.0,0.00013268,2]
[390924889,1760222980865,-300.0,0.00013268,2]
[390924890,1760222980887,-500.0,0.00013268,2]
[390924891,1760222980910,-509.8359687,0.00013268,2]
[390924892,1760222980935,-320.53627121,0.00013268,2]
[390924893,1760222980958,-150.0,0.00013361,2]
[390924894,1760222980980,-150.0,0.00013361,2]
[390924895,1760222981006,-59.0,0.00013362,2]
[390924896,1760222981031,-151.0,0.00013362,2]
[390924897,1760222981055,-500.0,0.00013362,2]
[390924898,1760222981080,-151.0,0.00013362,2]
[390924899,1760222981103,-500.0,0.00013362,2]
[390924900,1760222981126,-151.0,0.00013362,2]
[390924901,1760222981151,-151.0,0.00013362,2]
[390924902,1760222981174,-151.0,0.00013362,2]
[390924903,1760222981197,-500.0,0.00013362,2]
[390924904,1760222981220,-151.0,0.00013362,2]
[390924905,1760222981248,-151.0,0.00013362,2]
[390924906,1760222981272,-151.0,0.00013362,2]
[390924907,1760222981298,-151.0,0.00013362,2]
[390924908,1760222981324,-151.0,0.00013362,2]
[390924909,1760222981348,-151.0,0.00013362,2]
[390924910,1760222981371,-151.0,0.00013362,2]
[390924911,1760222981395,-151.0,0.00013362,2]
[390924912,1760222981417,-151.0,0.00013362,2]
[390924913,1760222981442,-151.0,0.00013362,2]
[390924914,1760222981464,-151.0,0.00013362,2]
[390924915,1760222981488,-151.0,0.00013362,2]
[390924916,1760222981510,-151.0,0.00013362,2]
[390924917,1760222981534,-151.0,0.00013362,2]
[390924918,1760222981557,-151.0,0.00013362,2]
[390924919,1760222981582,-151.0,0.00013362,2]
[390924920,1760222981605,-151.0,0.00013362,2]
[390924921,1760222981628,-151.0,0.00013362,2]
[390924922,1760222981651,-151.0,0.00013362,2]
[390924923,1760222981674,-151.0,0.00013362,2]
[390924924,1760222981697,-151.0,0.00013362,2]
[390924925,1760222981721,-151.0,0.00013362,2]
[390924926,1760222981744,-151.0,0.00013362,2]
[390924927,1760222981768,-151.0,0.00013362,2]
[390924928,1760222981791,-151.0,0.00013362,2]
[390924929,1760222981815,-151.0,0.00013362,2]
[390924930,1760222981838,-151.0,0.00013362,2]
[390924931,1760222981864,-151.0,0.00013362,2]
[390924932,1760222981888,-151.0,0.00013362,2]
[390924933,1760222981911,-151.0,0.00013362,2]
[390924934,1760222981935,-151.0,0.00013362,2]
[390924935,1760222981960,-151.0,0.00013362,2]
[390924936,1760222981984,-151.0,0.00013362,2]
[390924937,1760222982013,-151.0,0.00013362,2]
[390924938,1760222982038,-151.0,0.00013362,2]
[390924939,1760222982062,-151.0,0.00013362,2]
[390924940,1760222982089,-151.0,0.00013362,2]
[390924941,1760222982115,-151.0,0.00013362,2]
[390924942,1760222982138,-151.0,0.00013362,2]
[390924943,1760222982162,-200.0,0.00013362,2]
[390924944,1760222982185,-180.0,0.00013362,2]
[390924945,1760222982208,-161.84506399,0.00013362,2]
[390924946,1760222982234,-202.05836152,0.00013363,2]
[390924948,1760223003106,-200.0,0.00013267,2]
[390924949,1760223004659,-100.0,0.00013267,2]
[390924950,1760223004684,-232.59992373,0.00013267,2]
[390924955,1760223032051,-400.35773803,0.00013267,2]
[390924956,1760223032064,-567.04233824,0.00013267,2]
[390924957,1760223032074,-300.0,0.00013267,2]
[390924958,1760223032085,-500.0,0.00013267,2]
[390924959,1760223032096,-501.34898232,0.00013267,2]
[390924960,1760223032107,-149.30437425,0.00013314,2]
[390924961,1760223032120,-1850.69562575,0.00013314,2]
[390924962,1760223032130,-2000.0,0.00013343,2]
[390924963,1760223032140,-677.40118729,0.00013343,2]
[390924964,1760223032152,-587.91294211,0.00013343,2]
[390924965,1760223032174,-734.6858706,0.00013343,2]
[390924966,1760223032183,-2000.0,0.00013343,2]
[390924967,1760223032193,-493.1588286,0.00013357,2]
[390924968,1760223032203,-999.70782238,0.00013363,2]
[390924969,1760223032212,-11102.45522738,0.0001337,2]
[390924970,1760223032224,-229137.02764849,0.0001337,2]
[390924971,1760223032235,-150.0,0.0001337,2]
[390924972,1760223032245,-9391.2776714,0.00013371,2]
[390924973,1760223032256,-9127.4386476,0.00013371,2]
[390924974,1760223032266,-8883.72241108,0.00013451,2]
[390924975,1760223032276,-1000.0,0.0001348,2]
[390924976,1760223032286,-372.79494855,0.0001348,2]
[390924977,1760223032296,-196.15140527,0.00013504,2]
[390924978,1760223032306,-8883.72241108,0.00013632,2]
[390924979,1760223032316,-666.0,0.00013655,3]
[390924980,1760223032326,-200.0,0.00013699,2]
[390924981,1760223032336,-1046.14,0.000137,2]
[390924982,1760223032346,-500.0,0.00013703,2]
[390924983,1760223032365,-196.15140527,0.00013736,2]
[390924984,1760223032377,-8883.72241108,0.00013813,2]
[390924985,1760223032387,-1541.0,0.00013879,2]
[390924986,1760223032397,-670.58624095,0.0001389,2]
[390924987,1760223032407,-257.91778498,0.0001389,2]
[390924988,1760223032418,-8882.6885148,0.0001389,2]
[390924989,1760223032428,-1000.0,0.0001389,2]
[390924991,1760223032439,-1000.0,0.0001389,2]
[390924993,1760223032449,-644.79446246,0.0001389,2]
[390924996,1760223032459,-1000.0,0.0001389,2]
[390924997,1760223032470,-1000.0,0.0001389,2]
[390924999,1760223032479,-1000.0,0.0001389,2]
[390925000,1760223032489,-1000.0,0.0001389,2]
[390925001,1760223032498,-1000.0,0.0001389,2]
[390925002,1760223032508,-151.0,0.0001389,2]
[390925003,1760223032517,-322.6107,0.0001389,2]
[390925004,1760223032528,-200.0,0.0001391,2]
[390925005,1760223032538,-200.0,0.0001391,2]
[390925006,1760223032548,-1165.0,0.00013931,2]
[390925007,1760223032557,-692.0,0.00013945,2]
[390925008,1760223032567,-9211.34798985,0.00013945,2]
[390925009,1760223032576,-460.0,0.00013948,2]
[390925010,1760223032589,-196.15140527,0.00013969,2]
[390925011,1760223032598,-288.13,0.00013975,2]
[390925012,1760223033043,-573.75828181,0.00013991,2]
[390925013,1760223033058,-8883.72241108,0.00013994,2]
[390925014,1760223033068,-1169.27788651,0.00014,2]
[390925015,1760223033077,-1824.0,0.00014001,2]
[390925016,1760223033087,-877.0,0.00014005,2]
[390925017,1760223033099,-630.0,0.00014008,2]
[390925018,1760223033110,-1700.0,0.00014013,2]
[390925019,1760223033120,-1084.68466635,0.0001407,2]
[390925020,1760223033138,-1576.0,0.00014077,2]
[390925021,1760223033150,-1540.0,0.00014082,2]
[390925022,1760223033161,-513.0,0.00014137,2]
[390925023,1760223033171,-8883.72241108,0.00014176,2]
[390925024,1760223033181,-200.0,0.000142,5]
[390925025,1760223033191,-196.15140527,0.00014202,2]
[390925026,1760223033201,-500.0,0.00014274,2]
[390925027,1760223033211,-500.0,0.000143,5]
[390925028,1760223033221,-8883.72241108,0.00014357,2]
[390925029,1760223033231,-162.17788973,0.00014379,2]
[390925030,1760223033241,-800.0,0.000144,5]
[390925031,1760223033250,-196.15140527,0.00014435,2]
[390925032,1760223033260,-151.0,0.00014438,2]
[390925033,1760223033270,-200.0,0.00014458,2]
[390925034,1760223033280,-200.0,0.00014458,2]
[390925035,1760223033289,-700.0,0.00014459,2]
[390925036,1760223033299,-1900.0,0.00014459,2]
[390925037,1760223033308,-255.0,0.0001447,2]
[390925038,1760223033319,-1100.0,0.000145,5]
[390925039,1760223033329,-1514.73855714,0.00014503,2]
[390925040,1760223033338,-1000.0,0.00014511,2]
[390925041,1760223033348,-1000.0,0.00014513,2]
[390925042,1760223033361,-195.0,0.00014522,2]
[390925043,1760223033370,-300.0,0.00014522,2]
[390925044,1760223033380,-150.0,0.00014523,2]
[390925045,1760223033389,-1000.0,0.00014523,2]
[390925046,1760223033400,-1425.0,0.0001453,2]
[390925047,1760223033410,-8883.72241108,0.00014538,2]
[390925048,1760223033419,-1000.0,0.00014543,2]
[390925049,1760223033429,-1000.0,0.00014546,2]
[390925050,1760223033440,-420.0,0.00014546,2]
[390925051,1760223033451,-420.0,0.00014546,2]
[390925052,1760223033460,-1000.0,0.00014552,2]
[390925053,1760223033470,-151.33905994,0.00014553,2]
[390925054,1760223033480,-1000.0,0.00014557,2]
[390925055,1760223033490,-248.76941821,0.00014568,2]
[390925056,1760223033500,-1425.0,0.00014569,2]
[390925057,1760223033509,-1000.0,0.00014573,2]